bitfinex-derivatives/quotes_ETHF0:USTF0_20241102
["timestamp","ask_amount","ask_price","bid_price","bid_amount"]
[1730553022213,2.79383146,2493.4,2493.3,0.28082]
[1730553022912,0.70451,2493.4,2493.3,0.28082]
[1730553023113,2.79383146,2493.4,2493.3,0.28082]
[1730553023417,2.51302146,2493.4,2493.3,0.28082]
[1730553023616,0.4237,2493.4,2493.3,0.28082]
[1730553023817,2.79383146,2493.4,2493.3,0.28082]
[1730553024620,0.70451,2493.4,2493.3,0.28082]
[1730553025104,2.79383146,2493.4,2493.3,0.28082]
[1730553025308,2.79383146,2493.4,2493.0,3.6541]
[1730553025309,11.17629913,2493.4,2493.0,3.2078]
[1730553025516,1.84807978,2493.1,2493.0,3.2078]
[1730553025710,3.53439913,2493.2,2492.9,0.28085]
[1730553025918,2.27664355,2493.0,2492.9,0.28085]
[1730553026123,1.99579355,2493.0,2492.9,0.28085]
[1730553027424,0.4286,2493.0,2492.9,0.28085]
[1730553029408,2.51792146,2493.0,2492.9,0.28085]
[1730553029920,2.61290484,2493.2,2492.8,0.70219]
[1730553029921,2.08932146,2493.2,2492.8,0.70219]
[1730553030222,1.56859119,2493.1,2493.0,0.28085]
[1730553030624,1.56859119,2493.1,2493.0,0.74195]
[1730553030820,1.56918855,2493.1,2493.0,0.4611]
[1730553031126,1.56918855,2493.1,2493.0,1.29068017]
[1730553031822,2.37017146,2493.1,2492.9,0.28086]
[1730553032122,2.08932146,2493.0,2492.9,0.28086]
[1730553034127,2.37017146,2493.0,2492.8,0.28087]
[1730553034314,1.3297,2492.9,2492.8,0.28087]
[1730553034517,3.41902146,2492.9,2492.8,0.28087]
[1730553034717,3.41902146,2492.9,2492.8,0.82990611]
[1730553034718,1.3297,2492.9,2492.8,0.82990611]
[1730553035030,1.3297,2492.9,2492.8,0.28087]
[1730553035325,1.3297,2492.9,2492.8,0.82990551]
[1730553035526,1.3297,2492.9,2492.4,1.04987498]
[1730553035527,7.43022146,2492.9,2492.4,1.04987498]
[1730553035725,1.57019727,2492.6,2492.5,0.83003326]
[1730553036027,1.57019727,2492.6,2492.2,3.2078]
[1730553036028,2.61290484,2492.6,2492.2,3.2078]
[1730553036215,0.4624,2492.5,2492.4,0.28092]
[1730553036415,0.4624,2492.5,2492.3,0.28092]
[1730553036416,0.74331,2492.5,2492.3,0.28092]
[1730553036621,2.95305011,2492.4,2492.3,0.28092]
[1730553036830,3.23397011,2492.4,2492.3,0.54914011]
[1730553037024,4.8721,2492.4,2492.2,3.2078]
[1730553037232,4.29293,2492.3,2492.2,3.2078]
[1730553039322,4.29293,2492.3,2492.2,3.48874]
[1730553039923,4.29293,2492.3,2492.2,0.28094]
[1730553040124,4.012,2492.3,2492.2,0.28094]
[1730553040324,0.8601,2492.4,2492.3,0.28093]
[1730553040524,2.51926713,2492.4,2492.3,0.28093]
[1730553041026,0.4295,2492.4,2492.3,0.28093]
[1730553041726,1.99674896,2492.4,2492.3,0.28093]
[1730553043529,0.4295,2492.4,2492.3,0.28093]
[1730553043725,2.02964896,2492.5,2492.1,4.03668836]
[1730553044036,1.56724896,2492.5,2492.4,0.28092]
[1730553044221,1.56724896,2492.7,2492.3,6.33928836]
[1730553044424,1.56724896,2492.7,2492.6,0.2809]
[1730553044630,2.01104896,2492.8,2492.7,0.28089]
[1730553045132,2.01104896,2492.8,2492.6,0.28089]
[1730553045133,2.81444713,2492.8,2492.6,0.28089]
[1730553045329,1.56717375,2492.7,2492.5,0.2809]
[1730553045528,1.56717375,2492.7,2492.3,6.33928836]
[1730553045529,1.56717375,2492.7,2492.6,0.2809]
[1730553045727,1.56717375,2492.7,2492.3,6.33928836]
[1730553045728,1.84806375,2492.7,2492.5,0.2809]
[1730553046034,2.02157375,2492.6,2492.5,0.2809]
[1730553046735,0.4544,2492.6,2492.5,0.2809]
[1730553046927,1.56717375,2492.7,2492.6,0.2809]
[1730553047131,2.01097375,2492.8,2492.7,0.28089]
[1730553047636,0.4438,2492.8,2492.7,0.28089]
[1730553048431,2.01097375,2492.8,2492.7,0.28089]
[1730553049724,1.56717375,2492.9,2492.6,0.4473]
[1730553049926,1.56717375,2492.9,2492.8,0.28087]
[1730553050832,3.26982713,2493.0,2492.8,0.28087]
[1730553051336,1.56780964,2492.9,2492.8,0.28087]
[1730553051728,3.26982713,2493.0,2492.8,0.28087]
[1730553051930,1.56785853,2492.9,2492.8,0.28087]
[1730553052124,3.26982713,2493.0,2492.8,0.28087]
[1730553053020,3.26982713,2493.0,2492.9,0.28086]
[1730553053021,2.98896713,2493.0,2492.9,0.28086]
[1730553053921,0.4347,2493.1,2492.6,4.80004]
[1730553053922,2.08976713,2493.1,2492.6,4.80004]
[1730553054126,1.56785007,2493.0,2492.9,0.28086]
[1730553056239,1.56785007,2493.1,2492.9,4.0112]
[1730553056429,1.56785007,2493.2,2493.0,3.2078]
[1730553056629,1.56785007,2493.2,2493.1,0.71334]
[1730553058536,1.56785007,2493.3,2493.1,0.4325]
[1730553058733,1.56785007,2493.3,2493.2,0.28083]
[1730553059937,3.39196713,2493.4,2493.3,0.28082]
[1730553059938,2.44385007,2493.4,2493.3,0.28082]
[1730553060133,0.876,2493.4,2493.3,0.28082]
[1730553060443,2.44385007,2493.4,2493.3,0.28082]
[1730553060636,0.876,2493.4,2493.3,0.28082]
[1730553062432,1.56785007,2493.5,2493.1,1.3215]
[1730553062628,1.56785007,2493.5,2493.4,0.28081]
[1730553062833,0.426,2493.6,2493.5,0.2808]
[1730553064337,1.99343571,2493.6,2493.5,0.2808]
[1730553064840,0.426,2493.6,2493.5,0.2808]
[1730553065531,1.99331164,2493.6,2493.5,0.2808]
[1730553065736,1.99329911,2493.6,2493.5,0.2808]
[1730553066541,2.55206713,2493.7,2493.6,0.28078]
[1730553066542,2.02959911,2493.7,2493.6,0.28078]
[1730553066836,6.30778713,2494.0,2493.6,8.80917]
[1730553066837,1.56729911,2494.0,2493.6,8.80917]
[1730553067037,2.08976713,2494.1,2494.0,0.28074]
[1730553067038,1.56729911,2494.1,2494.0,0.28074]
[1730553067337,3.45626713,2494.2,2494.1,0.28073]
[1730553067338,2.93379911,2494.2,2494.1,0.28073]
[1730553067540,0.9224,2494.2,2494.1,0.28073]
[1730553077143,0.4631,2494.2,2494.1,4.29033]
[1730553077348,0.4631,2494.2,2494.1,4.72843]
[1730553077645,4.2030907,2495.1,2494.6,0.28066]
[1730553077646,1.84793911,2494.9,2494.6,0.28066]
[1730553077843,0.4239,2494.8,2494.6,0.28066]
[1730553078239,0.4239,2494.8,2494.2,3.9096]
[1730553078240,0.28066,2494.7,2494.4,0.28068]
[1730553078441,0.28067,2494.7,2494.4,0.28068]
[1730553078646,3.6317,2494.8,2494.4,0.28068]
[1730553078838,0.28071,2494.3,2494.2,3.2078]
[1730553079238,7.49811,2494.3,2494.0,0.28073]
[1730553079445,0.8683,2494.2,2493.7,4.45858836]
[1730553079748,0.4593,2494.1,2494.0,0.28074]
[1730553080147,0.4593,2494.1,2494.0,4.29034]
[1730553080645,0.4593,2494.1,2494.0,0.28074]
[1730553083046,4.74964,2494.1,2493.6,3.2078]
[1730553083248,0.4593,2494.1,2493.6,3.2078]
[1730553083450,0.4593,2494.1,2493.9,0.28074]
[1730553084048,0.4593,2494.1,2493.8,0.28076]
[1730553084349,0.28074,2494.0,2493.6,3.2078]
[1730553084545,0.28076,2493.9,2493.6,3.48858]
[1730553084946,0.72067,2493.8,2493.6,3.2078]
[1730553085147,0.4212,2493.7,2493.6,3.48858]
[1730553086442,0.4212,2493.7,2493.6,0.28078]
[1730553090459,0.4399,2493.8,2493.7,0.28077]
[1730553093555,0.4457,2494.0,2493.6,6.33928836]
[1730553093859,0.4457,2494.0,2493.9,0.28075]
[1730553096753,0.4457,2494.0,2493.6,7.04122836]
[1730553096754,0.8795,2494.1,2493.6,6.33928836]
[1730553097053,0.4593,2494.1,2494.0,0.28074]
[1730553098362,0.4599,2494.3,2494.2,0.28072]
[1730553098546,0.9212,2494.3,2494.2,0.28072]
[1730553100654,1.56729911,2494.3,2494.2,0.28072]
[1730553101255,2.48059911,2494.4,2494.3,0.28071]
[1730553101551,3.00306713,2494.4,2494.3,0.28071]
[1730553103963,3.00306713,2494.4,2493.9,6.77608836]
[1730553103964,3.00306713,2494.4,2494.2,0.28071]
[1730553104156,3.00306713,2494.4,2494.3,0.28071]
[1730553104556,0.9133,2494.4,2494.3,0.28071]
[1730553104857,3.00482039,2494.4,2494.3,0.28071]
[1730553105156,3.00477712,2494.4,2494.3,0.28071]
[1730553105561,2.55437712,2494.4,2494.3,0.28071]
[1730553105759,2.55437712,2494.4,2494.3,0.72611]
[1730553106258,2.55437712,2494.4,2494.3,0.28071]
[1730553109258,0.4629,2494.4,2494.3,0.28071]
[1730553110954,0.4629,2494.4,2494.2,3.2078]
[1730553111176,0.4629,2494.4,2493.9,3.2078]
[1730553111177,3.0603307,2494.3,2493.9,3.2078]
[1730553111363,2.6125307,2494.2,2494.1,0.28073]
[1730553113365,3.0603307,2494.3,2494.2,0.28072]
[1730553115060,0.4478,2494.3,2494.2,0.28072]
[1730553115562,0.28072,2494.2,2493.9,6.33928836]
[1730553115768,2.09453487,2494.1,2494.0,0.54897014]
[1730553115970,2.09453487,2494.1,2494.0,0.82971014]
[1730553118569,2.09453487,2494.1,2494.0,2.27435336]
[1730553121279,2.09453487,2494.1,2494.0,2.27435085]
[1730553121669,2.09453487,2494.1,2494.0,1.72535706]
[1730553121869,2.09453487,2494.1,2494.0,2.27435101]
[1730553127478,0.72851,2494.3,2494.1,0.28073]
[1730553129270,2.61970162,2494.2,2494.1,0.28073]
[1730553129871,2.9004939,2494.2,2494.1,0.28073]
[1730553130076,0.72851,2494.3,2494.1,0.28073]
[1730553130369,0.72851,2494.3,2494.2,0.28072]
[1730553130370,0.4478,2494.3,2494.2,0.28072]
[1730553130674,0.72851,2494.3,2494.2,0.28072]
[1730553131070,0.72851,2494.3,2494.1,0.28072]
[1730553131271,0.4478,2494.3,2494.0,1.44461706]
[1730553131475,2.61995352,2494.1,2494.0,0.28073]
[1730553131678,0.28073,2494.2,2494.0,0.28073]
[1730553131977,4.0096,2494.2,2494.0,1.44461706]
[1730553132179,2.61996168,2494.1,2494.0,1.72535706]
[1730553132383,0.72851,2494.3,2494.1,0.28072]
[1730553132384,3.58328581,2494.3,2494.1,0.28072]
[1730553132674,3.86399581,2494.3,2494.2,0.28072]
[1730553133181,0.28072,2494.2,2494.1,0.28072]
[1730553133691,4.29032,2494.2,2494.1,0.28072]
[1730553134585,4.0096,2494.2,2494.1,0.28072]
[1730553134888,4.29032,2494.2,2494.1,0.28072]
[1730553135193,0.28076,2493.9,2493.8,0.28075]
[1730553135892,1.16345,2493.9,2493.8,0.28075]
[1730553137391,0.28076,2493.8,2493.7,0.28076]
[1730553137788,0.28076,2493.8,2493.1,1.57481247]
[1730553137789,4.71234,2493.7,2493.0,1.04987498]
[1730553138093,4.71234,2493.7,2492.7,1.44461706]
[1730553138094,4.65241706,2493.2,2492.7,1.44461706]
[1730553138297,2.6199357,2492.9,2492.8,0.28087]
[1730553138493,2.09348995,2492.9,2492.8,0.28087]
[1730553138997,2.09348995,2492.9,2492.7,1.44461706]
[1730553139297,2.09346354,2492.8,2492.7,0.28089]
[1730553139592,1.51293775,2492.8,2492.7,1.72550706]
[1730553139783,2.09346354,2492.9,2492.8,0.28087]
[1730553139784,1.04586662,2492.9,2492.8,0.28087]
[1730553139990,1.04586662,2492.9,2492.8,1.27164341]
[1730553140386,1.04586662,2492.9,2492.8,0.72297]
[1730553140591,1.04586662,2493.0,2492.9,0.28086]
[1730553140897,1.04586662,2493.1,2493.0,0.28085]
[1730553143601,1.04586662,2493.2,2493.1,0.28084]
[1730553143802,0.8901,2493.3,2493.1,0.28084]
[1730553144099,1.04465754,2493.2,2493.1,0.28084]
[1730553145702,0.8901,2493.3,2493.2,0.28083]
[1730553145703,1.93475754,2493.3,2493.2,0.28083]
[1730553146006,0.8901,2493.3,2493.2,0.28083]
[1730553146192,1.93433765,2493.3,2493.2,0.28083]
[1730553149598,0.4467,2493.4,2493.1,3.2078]
[1730553149599,1.04423765,2493.4,2493.1,3.2078]
[1730553149798,1.04423765,2493.5,2493.4,0.28081]
[1730553151298,1.04423765,2493.6,2493.4,4.0104]
[1730553151503,1.04423765,2493.7,2493.6,0.28078]
[1730553152210,0.8573,2493.8,2493.6,0.28078]
[1730553152510,0.8573,2493.8,2493.4,3.2078]
[1730553152709,1.04420036,2493.6,2493.5,0.28079]
[1730553152906,1.04420036,2493.6,2493.4,0.2808]
[1730553152907,1.32498036,2493.6,2493.4,0.2808]
[1730553153102,1.04420036,2493.5,2493.4,0.2808]
[1730553153408,1.04420036,2493.5,2493.0,7.6880858]
[1730553153610,2.38330036,2493.4,2493.0,7.6880858]
[1730553153807,2.38330036,2493.4,2493.3,0.28082]
[1730553154207,2.38330036,2493.4,2493.2,0.28082]
[1730553154405,2.38330036,2493.4,2493.3,0.28082]
[1730553155412,2.66412036,2493.4,2493.1,0.28083]
[1730553155613,1.32502036,2493.3,2493.1,0.28083]
[1730553155911,1.04420036,2493.2,2493.1,0.28083]
[1730553158905,1.04420036,2493.3,2493.0,3.2078]
[1730553159107,1.04420036,2493.3,2493.2,0.28083]
[1730553159506,2.38330036,2493.4,2493.0,3.2078]
[1730553159714,1.49440036,2493.4,2493.3,0.28082]
[1730553160804,0.8754,2493.6,2493.4,0.28081]
[1730553160805,1.91960036,2493.6,2493.4,0.28081]
[1730553161008,1.91960036,2493.6,2493.5,0.7225]
[1730553161009,0.8754,2493.6,2493.5,0.7225]
[1730553161311,0.4402,2493.7,2493.5,0.4417]
[1730553161520,0.4402,2493.7,2493.6,0.28078]
[1730553162418,1.88500005,2493.7,2493.6,0.28078]
[1730553162911,1.48478729,2493.7,2493.6,0.28078]
[1730553163114,1.04458729,2493.7,2493.6,0.28078]
[1730553169620,1.04458729,2493.7,2493.6,4.93338005]
[1730553169817,2.97696354,2493.9,2493.7,0.28077]
[1730553169818,1.04458729,2493.8,2493.7,0.28077]
[1730553171018,0.28076,2493.8,2493.6,3.48858]
[1730553171209,0.28076,2493.8,2493.6,0.28078]
[1730553171414,4.42176359,2493.9,2493.6,0.28078]
[1730553171613,4.70252359,2493.9,2493.6,0.28078]
[1730553171816,4.70252359,2493.9,2493.5,3.6495]
[1730553172018,4.70252359,2493.9,2493.7,0.28077]
[1730553172317,4.42176359,2493.9,2493.7,0.28077]
[1730553172519,4.70252359,2493.9,2493.7,0.28077]
[1730553173317,2.09346354,2493.8,2493.7,0.28077]
[1730553174115,2.09346354,2493.8,2493.6,0.28077]
[1730553174315,2.09346354,2493.8,2493.7,0.28077]
[1730553179116,2.09346354,2493.8,2493.7,1.72557005]
[1730553179319,2.97696354,2493.9,2493.8,0.28076]
[1730553181829,0.28077,2493.8,2493.5,0.4417]
[1730553182017,3.53892244,2493.7,2493.5,0.72248]
[1730553182432,1.44480005,2493.7,2493.6,0.28078]
[1730553182732,3.53894664,2493.7,2493.6,0.28078]
[1730553182926,3.53894664,2493.7,2493.5,0.4417]
[1730553182927,1.44480005,2493.7,2493.5,0.4417]
[1730553183133,3.81970732,2493.6,2493.4,0.2808]
[1730553183318,2.97872727,2493.5,2493.4,0.2808]
[1730553183521,1.3186,2493.5,2493.4,0.2808]
[1730553184829,3.9385357,2493.5,2493.4,0.2808]
[1730553185233,1.3186,2493.5,2493.4,0.2808]
[1730553185425,3.9385357,2493.5,2493.4,0.2808]
[1730553185824,1.3186,2493.5,2493.4,0.2808]
[1730553187121,1.5994,2493.5,2493.4,0.2808]
[1730553187329,1.5994,2493.5,2492.9,5.53860005]
[1730553187330,7.9489357,2493.5,2492.9,5.53860005]
[1730553187536,1.04780926,2493.1,2493.0,0.82971359]
[1730553187832,1.44480005,2493.2,2493.1,0.28084]
[1730553188021,4.06473575,2493.2,2493.1,0.28084]
[1730553188226,4.06473575,2493.2,2492.9,3.6656]
[1730553188424,2.54361666,2493.1,2493.0,0.28084]
[1730553188634,3.0682357,2493.1,2493.0,0.28084]
[1730553190333,4.51303575,2493.1,2492.6,4.65260005]
[1730553190533,2.09484265,2492.8,2492.6,3.2078]
[1730553190838,2.09484265,2492.8,2492.7,1.72569005]
[1730553191031,2.09484265,2493.0,2492.9,0.28086]
[1730553191335,2.09484265,2493.0,2492.9,1.72566005]
[1730553191640,2.09484265,2493.1,2492.9,1.44480005]
[1730553191843,2.09484265,2493.1,2493.0,0.28085]
[1730553193135,3.0568357,2493.2,2493.1,0.28084]
[1730553193439,4.50163575,2493.2,2493.1,0.28084]
[1730553194030,2.6199357,2493.2,2493.1,0.28084]
[1730553194338,2.09296841,2493.2,2493.1,0.28084]
[1730553196634,1.72564005,2493.2,2493.0,0.28084]
[1730553196830,4.34557575,2493.2,2493.0,0.28084]
[1730553197633,1.44480005,2493.1,2492.7,3.2078]
[1730553197832,2.54896623,2493.0,2492.8,0.28087]
[1730553198040,2.09276623,2492.9,2492.8,0.28087]
[1730553198842,2.37362623,2492.9,2492.8,0.28087]
[1730553199141,2.51856623,2492.9,2492.8,0.28087]
[1730553200543,2.79942623,2492.9,2492.8,0.28087]
[1730553202038,0.4258,2492.9,2492.8,0.28087]
[1730553202238,2.09276623,2493.0,2492.9,0.28086]
[1730553202444,2.09276623,2493.1,2493.0,0.28085]
[1730553202635,3.3580557,2493.3,2492.8,0.4639]
[1730553202636,2.09276623,2493.2,2492.8,0.4639]
[1730553202837,2.09276623,2493.1,2493.0,0.28084]
[1730553203048,6.10396623,2493.1,2493.0,0.28084]
[1730553204346,2.09276623,2493.1,2493.0,0.28084]
[1730553204546,1.56842174,2493.1,2493.0,0.28085]
[1730553205047,2.55006623,2493.3,2493.1,0.28084]
[1730553205540,2.55006623,2493.3,2493.2,0.28083]
[1730553210545,2.09276623,2493.3,2493.0,0.4268]
[1730553210748,0.4206,2493.4,2493.1,0.28084]
[1730553210749,1.56897548,2493.2,2493.1,0.28084]
[1730553213250,3.23977623,2493.4,2493.2,0.28083]
[1730553213446,1.56908535,2493.3,2493.2,0.28083]
[1730553213647,2.95896623,2493.4,2493.0,0.4268]
[1730553213853,1.04612828,2493.2,2493.0,3.5581899]
[1730553214161,1.04612828,2493.3,2493.2,0.28083]
[1730553215042,1.04612828,2493.3,2493.2,4.29203]
[1730553215453,1.04612828,2493.3,2493.2,4.74893]
[1730553216348,1.56921105,2493.3,2493.1,3.2078]
[1730553216553,0.4221,2493.2,2493.1,3.48863]
[1730553218050,1.99185212,2493.2,2493.1,3.48863]
[1730553218445,0.4221,2493.2,2493.1,3.48863]
[1730553218648,2.09276623,2493.3,2493.1,3.2078]
[1730553218850,2.09276623,2493.3,2493.1,3.48864]
[1730553218851,1.56993129,2493.2,2493.1,3.48864]
[1730553219848,1.56993129,2493.2,2493.1,7.49984]
[1730553220049,1.56993129,2493.2,2493.1,8.04831403]
[1730553220050,1.04673861,2493.2,2493.1,8.04831403]
[1730553222559,1.57070312,2493.3,2493.1,3.75627403]
[1730553222747,2.09276623,2493.2,2493.1,3.2078]
[1730553222949,2.53406623,2493.2,2493.1,3.2078]
[1730553223155,9.67665613,2493.2,2492.7,0.4632]
[1730553223355,1.04704009,2492.8,2492.7,0.4632]
[1730553223550,1.04704009,2492.8,2492.7,1.2928478]
[1730553223755,1.93104009,2492.8,2492.7,1.2928478]
[1730553224256,2.45456013,2492.8,2492.7,0.8296478]
[1730553224756,0.884,2492.8,2492.7,0.28089]
[1730553225349,3.25764623,2492.8,2492.6,3.2078]
[1730553225563,6.10476623,2492.7,2492.1,4.71637498]
[1730553225753,6.10476623,2492.7,2492.2,0.54899913]
[1730553225754,1.04743799,2492.3,2492.2,0.54899913]
[1730553225957,0.28093,2492.3,2492.1,3.2078]
[1730553226254,3.8142757,2492.2,2491.9,0.28097]
[1730553226456,2.09428407,2492.1,2492.0,0.28096]
[1730553226657,2.55078407,2492.1,2491.9,0.28096]
[1730553226853,2.55078407,2492.1,2492.0,0.28096]
[1730553227054,2.55078407,2492.1,2491.7,3.2078]
[1730553227265,1.04657045,2491.8,2491.7,3.2078]
[1730553227482,1.04657045,2491.8,2491.5,0.886]
[1730553227483,1.56863402,2491.8,2491.5,0.886]
[1730553227670,2.03093402,2491.7,2491.6,0.28101]
[1730553228466,0.4623,2491.7,2491.6,0.28101]
[1730553228864,1.50747978,2491.7,2491.6,0.28101]
[1730553230162,1.50747978,2491.7,2491.2,3.651]
[1730553230465,3.1313899,2491.6,2491.4,0.28103]
[1730553230662,4.17656968,2491.6,2491.4,0.28103]
[1730553231563,3.1313899,2491.6,2491.4,0.28103]
[1730553233267,3.1313899,2491.6,2491.3,3.48884]
[1730553233767,3.1313899,2491.6,2491.4,0.28103]
[1730553234569,1.93147978,2491.7,2491.3,3.2078]
[1730553234767,0.4623,2491.7,2491.6,0.28101]
[1730553235572,0.443,2492.0,2491.9,0.28098]
[1730553235766,0.9048,2492.0,2491.9,0.28098]
[1730553236970,0.9048,2492.0,2491.8,0.28098]
[1730553237361,0.9048,2492.0,2491.9,0.28098]
[1730553237560,0.9048,2492.0,2491.6,3.2078]
[1730553237561,0.9048,2492.0,2491.8,0.28099]
[1730553238364,0.9048,2492.0,2491.6,3.2078]
[1730553238566,0.9048,2492.0,2491.9,0.28098]
[1730553239469,0.4618,2492.0,2491.9,0.28098]
[1730553240371,0.4347,2492.3,2491.9,3.2078]
[1730553240674,0.8672,2492.3,2492.2,0.28094]
[1730553242265,0.8672,2492.3,2492.1,0.28095]
[1730553242972,0.8672,2492.3,2492.2,0.28094]
[1730553243575,0.8672,2492.3,2492.1,0.28095]
[1730553243776,0.28095,2492.2,2491.9,3.48876]
[1730553244081,0.28095,2492.2,2491.9,3.48877]
[1730553244868,3.1313899,2492.1,2491.9,3.2078]
[1730553245176,0.28096,2492.0,2491.9,3.2078]
[1730553245674,0.73186,2492.0,2491.9,3.2078]
[1730553246978,0.73186,2492.0,2491.9,3.48878]
[1730553247365,0.4509,2492.0,2491.9,0.28098]
[1730553249780,5.04376968,2492.3,2491.6,0.70251]
[1730553249983,5.04376968,2492.3,2492.2,0.28094]
[1730553249984,3.9985899,2492.3,2492.2,0.28094]
[1730553250376,8.0113899,2492.3,2492.2,0.28094]
[1730553250982,0.4325,2492.3,2492.2,0.28094]
[1730553251778,4.71017978,2492.7,2492.2,0.28094]
[1730553251779,0.4572,2492.7,2492.6,0.2809]
[1730553251980,0.9091,2492.7,2492.6,0.2809]
[1730553259792,4.0404899,2492.7,2492.6,0.2809]
[1730553264383,5.08566968,2492.7,2492.6,0.2809]
[1730553266093,4.17656968,2492.7,2492.6,0.2809]
[1730553266294,1.56863402,2492.8,2492.6,3.2078]
[1730553266295,1.04517978,2492.8,2492.6,3.2078]
[1730553266490,1.04517978,2492.8,2492.7,0.28089]
[1730553267992,1.04517978,2492.8,2492.4,0.4266]
[1730553267993,0.28089,2492.7,2492.5,0.2809]
[1730553268295,1.56696717,2492.7,2492.5,0.2809]
[1730553268494,1.56696717,2492.6,2492.5,0.2809]
[1730553269193,1.56696717,2492.6,2492.4,0.4266]
[1730553269387,1.56696717,2492.6,2492.4,0.70752]
[1730553269388,1.04506444,2492.5,2492.4,0.70752]
[1730553271887,2.01526717,2492.6,2492.5,0.28091]
[1730553274995,2.01526717,2492.6,2492.4,0.4266]
[1730553275295,1.56696717,2492.5,2492.4,0.70751]
[1730553275892,1.56696717,2492.5,2492.4,0.4266]
[1730553276092,1.56696717,2492.5,2492.4,0.70752]
[1730553276292,1.56696717,2492.5,2492.4,0.4266]
[1730553276494,1.56696717,2492.5,2492.4,0.70752]
[1730553280791,1.56696717,2492.5,2492.4,4.71952]
[1730553281201,1.56696717,2492.5,2492.4,5.2679458]
[1730553283101,2.09428407,2492.8,2492.5,0.28091]
[1730553283102,1.04704419,2492.6,2492.5,0.28091]
[1730553283301,1.04704419,2492.6,2492.5,5.30119645]
[1730553283701,1.04704419,2492.6,2492.5,4.75271]
[1730553283902,1.04704419,2492.6,2492.5,5.30121377]
[1730553284296,1.04704419,2492.6,2492.5,1.28921377]
[1730553285103,1.04704419,2492.6,2492.5,0.82941377]
[1730553287503,1.56696717,2492.7,2492.6,0.2809]
[1730553287708,2.09428407,2492.7,2492.6,0.2809]
[1730553292808,2.6199357,2492.8,2492.4,3.6344]
[1730553293109,1.57195356,2492.5,2492.4,3.91532]
[1730553293415,1.57195356,2492.5,2492.4,5.34283832]
[1730553293614,1.57195356,2492.5,2492.4,9.35483832]
[1730553294018,1.57195356,2492.5,2492.4,7.92732]
[1730553294315,1.57195356,2492.5,2492.4,9.35481011]
[1730553295118,2.09593809,2492.6,2492.4,9.07389011]
[1730553295329,2.09593809,2492.6,2492.5,1.70948978]
[1730553295715,2.09593809,2492.6,2492.5,5.72148978]
[1730553296223,2.6199357,2492.7,2492.6,0.2809]
[1730553296424,2.6199357,2492.7,2492.6,0.83035376]
[1730553297216,1.8729266,2492.8,2492.7,0.28089]
[1730553297421,1.8729266,2492.8,2492.7,0.83034376]
[1730553298122,0.4277,2492.8,2492.7,0.83034376]
[1730553298322,2.6240765,2492.8,2492.7,4.91764733]
[1730553298529,3.5010765,2492.9,2492.7,4.63675733]
[1730553298720,3.5010765,2492.9,2492.8,1.70982733]
[1730553298920,3.5010765,2492.9,2492.8,2.14172733]
[1730553299220,3.5010765,2492.9,2492.8,0.71277]
[1730553299525,3.5010765,2492.9,2492.8,2.14191018]
[1730553301431,3.5010765,2492.9,2492.8,1.2624393]
[1730553301623,3.5010765,2492.9,2492.8,0.71277]
[1730553301828,3.5010765,2492.9,2492.8,2.14158742]
[1730553302126,3.5010765,2492.9,2492.8,2.14158794]
[1730553302324,3.5010765,2492.9,2492.8,1.26231549]
[1730553302931,0.877,2492.9,2492.8,1.26231549]
[1730553303126,4.9463031,2492.9,2492.8,0.83036336]
[1730553304728,0.877,2492.9,2492.8,0.83036336]
[1730553304934,3.5010765,2492.9,2492.8,0.83036336]
[1730553305128,0.877,2492.9,2492.8,0.83036336]
[1730553305327,2.09682075,2492.9,2492.8,0.54949336]
[1730553305629,2.09682075,2493.0,2492.9,0.28086]
[1730553305925,2.09682075,2493.0,2492.9,0.83027206]
[1730553306129,2.09682075,2493.0,2492.9,6.14833136]
[1730553306130,1.57278782,2493.0,2492.9,6.14833136]
[1730553306328,1.04819584,2493.0,2492.9,6.57583136]
[1730553306923,1.04819584,2493.0,2492.9,9.70666542]
[1730553307123,1.04819584,2493.2,2492.9,10.4756804]
[1730553307318,1.04819584,2493.2,2493.1,3.48864]
[1730553307524,1.04819584,2493.2,2493.1,4.91711136]
[1730553307733,1.04819584,2493.3,2493.2,0.28083]
[1730553308033,1.04819584,2493.3,2493.2,6.60450136]
[1730553308625,1.04819584,2493.4,2493.3,0.28082]
[1730553308928,1.04819584,2493.4,2493.3,1.27603206]
[1730553309131,1.93539584,2493.5,2493.3,0.4458]
[1730553309436,1.93413841,2493.5,2493.4,4.03705369]
[1730553309633,1.04693841,2493.5,2493.4,4.03705369]
[1730553309830,2.01388782,2493.6,2493.4,4.03705369]
[1730553309831,1.48803841,2493.6,2493.4,7.76664369]
[1730553310128,1.48740258,2493.6,2493.5,0.8292276]
[1730553310330,1.48740258,2493.6,2493.5,0.2808]
[1730553311224,0.4411,2493.6,2493.5,0.2808]
[1730553312031,1.48740258,2493.6,2493.5,0.2808]
[1730553312336,0.4411,2493.6,2493.5,0.2808]
[1730553313338,1.48740258,2493.6,2493.5,0.2808]
[1730553314032,2.01388782,2493.6,2493.2,0.884]
[1730553314237,1.04509636,2493.4,2493.3,0.28081]
[1730553314635,1.91629636,2493.4,2493.3,0.28081]
[1730553315034,1.91629636,2493.4,2493.1,3.2078]
[1730553315231,2.19710636,2493.4,2493.1,3.2078]
[1730553315431,1.57278782,2493.3,2493.1,3.48864]
[1730553315645,1.57278782,2493.3,2493.2,0.28083]
[1730553316330,1.56720657,2493.3,2493.2,0.28083]
[1730553316731,2.96802075,2493.4,2493.2,0.28083]
[1730553317944,2.96802075,2493.4,2493.1,3.2078]
[1730553318244,1.56683272,2493.3,2493.2,0.28083]
[1730553318846,1.9157989,2493.4,2493.2,0.72093]
[1730553319045,1.9157989,2493.4,2493.3,0.28082]
[1730553319541,0.8712,2493.4,2493.3,0.28082]
[1730553320136,0.4225,2493.4,2493.3,0.28082]
[1730553321643,1.9154989,2493.6,2493.3,4.0104]
[1730553321840,0.8709,2493.6,2493.5,3.4886]
[1730553322341,1.0445989,2493.7,2493.6,0.28078]
[1730553322542,0.4291,2493.8,2493.7,0.28077]
[1730553325543,1.0445989,2493.9,2493.8,0.28076]
[1730553325744,0.4559,2494.0,2493.9,0.28075]
[1730553325941,0.4559,2494.0,2493.9,3.48855]